fUSD/lending_fUSD_20260425
["ID","MTS","AMOUNT","RATE_DAILY","PERIOD"]
[421106586,1777051843628,-151.0,0.0001,2]
[421106587,1777051843643,-151.0,0.0001,2]
[421106588,1777051843660,-500.0,0.0001,2]
[421106589,1777051843675,-151.0,0.0001,2]
[421106590,1777051843691,-500.0,0.0001,2]
[421106591,1777051843707,-151.0,0.0001,2]
[421106592,1777051843722,-500.0,0.0001,2]
[421106593,1777051843736,-151.0,0.0001,2]
[421106594,1777051843751,-500.0,0.0001,2]
[421106595,1777051843765,-151.0,0.0001,2]
[421106596,1777051843784,-500.0,0.0001,2]
[421106597,1777051843805,-151.0,0.0001,2]
[421106598,1777051843825,-1130.746104,0.0001,2]
[421106599,1777051843845,-500.0,0.0001,2]
[421106600,1777051843863,-151.0,0.0001,2]
[421106601,1777051843880,-151.0,0.0001,2]
[421106602,1777051843897,-500.0,0.0001,2]
[421106603,1777051843914,-151.0,0.0001,2]
[421106604,1777051843931,-500.0,0.0001,2]
[421106605,1777051843947,-151.0,0.0001,2]
[421106606,1777051843963,-1130.746104,0.0001,2]
[421106607,1777051843979,-500.0,0.0001,2]
[421106608,1777051843995,-500.0,0.0001,2]
[421106609,1777051844010,-500.0,0.0001,2]
[421106610,1777051844025,-500.0,0.0001,2]
[421106611,1777051844040,-1130.746104,0.0001,2]
[421106612,1777051844056,-1130.746101,0.0001,2]
[421106613,1777051844071,-5700.0,0.0001,3]
[421106614,1777051844086,-500.0,0.0001,2]
[421106615,1777051844101,-500.0,0.0001,2]
[421106616,1777051844116,-500.0,0.0001,2]
[421106617,1777051844130,-500.0,0.0001,2]
[421106618,1777051844148,-500.0,0.0001,2]
[421106619,1777051844167,-151.0,0.0001,2]
[421106620,1777051844182,-500.0,0.0001,2]
[421106621,1777051844198,-151.0,0.0001,2]
[421106622,1777051844215,-500.0,0.0001,2]
[421106623,1777051844230,-151.0,0.0001,2]
[421106624,1777051844246,-500.0,0.0001,2]
[421106625,1777051844261,-500.0,0.0001,2]
[421106626,1777051844277,-151.0,0.0001,2]
[421106627,1777051844292,-500.0,0.0001,2]
[421106628,1777051844307,-151.0,0.0001,2]
[421106629,1777051844321,-500.0,0.0001,2]
[421106630,1777051844337,-151.0,0.0001,2]
[421106631,1777051844355,-151.0,0.0001,2]
[421106632,1777051844372,-500.0,0.0001,2]
[421106633,1777051844387,-151.0,0.0001,2]
[421106634,1777051844403,-151.0,0.0001,2]
[421106635,1777051844418,-151.0,0.0001,2]
[421106636,1777051844433,-151.0,0.0001,2]
[421106637,1777051844449,-151.0,0.0001,2]
[421106638,1777051844463,-151.0,0.0001,2]
[421106639,1777051844478,-151.0,0.0001,2]
[421106640,1777051844493,-151.0,0.0001,2]
[421106641,1777051844508,-151.0,0.0001,2]
[421106642,1777051844523,-151.0,0.0001,2]
[421106643,1777051844536,-151.0,0.0001,2]
[421106644,1777051844551,-151.0,0.0001,2]
[421106645,1777051844569,-151.0,0.0001,2]
[421106646,1777051844585,-151.0,0.0001,2]
[421106647,1777051844600,-1337.30371513,0.0001,2]
[421106648,1777051844616,-151.0,0.0001,2]
[421106649,1777051844631,-151.0,0.0001,2]
[421106650,1777051844646,-339.0,0.0001,2]
[421106651,1777051844660,-339.0,0.0001,2]
[421106652,1777051844676,-339.54597046,0.0001,2]
[421106653,1777051844690,-915.83947302,0.0001,2]
[421106654,1777051844704,-500.0,0.0001,2]
[421106655,1777051844718,-500.0,0.0001,2]
[421106656,1777051844732,-500.0,0.0001,2]
[421106657,1777051844747,-500.0,0.0001,2]
[421106658,1777051844764,-500.0,0.0001,2]
[421106659,1777051844778,-500.0,0.0001,2]
[421106660,1777051844793,-500.0,0.0001,2]
[421106661,1777051844807,-500.0,0.0001,2]
[421106662,1777051844822,-500.0,0.0001,2]
[421106663,1777051844836,-500.0,0.0001,2]
[421106664,1777051844851,-500.0,0.0001,2]
[421106665,1777051844866,-500.0,0.0001,2]
[421106666,1777051844881,-500.0,0.0001,2]
[421106667,1777051844896,-500.0,0.0001,2]
[421106668,1777051844909,-500.0,0.0001,2]
[421106669,1777051844923,-500.0,0.0001,2]
[421106670,1777051844937,-500.0,0.0001,2]
[421106671,1777051844950,-500.0,0.0001,2]
[421106672,1777051844964,-500.0,0.0001,2]
[421106673,1777051844978,-500.0,0.0001,2]
[421106674,1777051844993,-500.0,0.0001,2]
[421106675,1777051845007,-500.0,0.0001,2]
[421106676,1777051845023,-500.0,0.0001,2]
[421106677,1777051845036,-500.0,0.0001,2]
[421106678,1777051845051,-500.0,0.0001,2]
[421106679,1777051845065,-500.0,0.0001,2]
[421106680,1777051845080,-500.0,0.0001,2]
[421106681,1777051845096,-500.0,0.0001,2]
[421106682,1777051845109,-500.0,0.0001,2]
[421106683,1777051845122,-500.0,0.0001,2]
[421106684,1777051845135,-500.0,0.0001,2]
[421106685,1777051845147,-500.0,0.0001,2]
[421106686,1777051845160,-500.0,0.0001,2]
[421106687,1777051845173,-500.0,0.0001,2]
[421106688,1777051845187,-500.0,0.0001,2]
[421106689,1777051845200,-500.0,0.0001,2]
[421106690,1777051845213,-500.0,0.0001,2]
[421106691,1777051845227,-500.0,0.0001,2]
[421106692,1777051845241,-500.0,0.0001,2]
[421106693,1777051845255,-500.0,0.0001,2]
[421106694,1777051845271,-500.0,0.0001,2]
[421106695,1777051845285,-500.0,0.0001,2]
[421106696,1777051845300,-500.0,0.0001,2]
[421106697,1777051845315,-500.0,0.0001,2]
[421106698,1777051845330,-500.0,0.0001,2]
[421106699,1777051845345,-500.0,0.0001,2]
[421106700,1777051845359,-500.0,0.0001,2]
[421106701,1777051845370,-500.0,0.0001,2]
[421106702,1777051845380,-500.0,0.0001,2]
[421106703,1777051845937,-500.0,0.0001,2]
[421106704,1777051845988,-500.0,0.0001,2]
[421106705,1777051846031,-500.0,0.0001,2]
[421106706,1777051846051,-500.0,0.0001,2]
[421106707,1777051846062,-500.0,0.0001,2]
[421106708,1777051846073,-500.0,0.0001,2]
[421106709,1777051846083,-500.0,0.0001,2]
[421106710,1777051846095,-500.0,0.0001,2]
[421106711,1777051846105,-500.0,0.0001,2]
[421106712,1777051846117,-500.0,0.0001,2]
[421106713,1777051846127,-500.0,0.0001,2]
[421106714,1777051846137,-500.0,0.0001,2]
[421106715,1777051846148,-500.0,0.0001,2]
[421106716,1777051846158,-500.0,0.0001,2]
[421106717,1777051846168,-500.0,0.0001,2]
[421106718,1777051846178,-500.0,0.0001,2]
[421106719,1777051846188,-500.0,0.0001,2]
[421106720,1777051846198,-500.0,0.0001,2]
[421106721,1777051846208,-500.0,0.0001,2]
[421106722,1777051846218,-500.0,0.0001,2]
[421106723,1777051846228,-500.0,0.0001,2]
[421106724,1777051846237,-500.0,0.0001,2]
[421106725,1777051846247,-500.0,0.0001,2]
[421106726,1777051846256,-500.0,0.0001,2]
[421106727,1777051846266,-500.0,0.0001,2]
[421106728,1777051846276,-500.0,0.0001,2]
[421106729,1777051846285,-500.0,0.0001,2]
[421106730,1777051846295,-500.0,0.0001,2]
[421106731,1777051846305,-500.0,0.0001,2]
[421106732,1777051846315,-500.0,0.0001,2]
[421106733,1777051846325,-500.0,0.0001,2]
[421106734,1777051846335,-463.923809,0.00010015,2]
[421106735,1777051846344,-650.326035,0.00010015,2]
[421106736,1777051846354,-14610.5605079,0.00010024,2]
[421106737,1777051846366,-54038.5329418,0.00010024,2]
[421106738,1777051846376,-24383.9055567,0.00010024,2]
[421106739,1777051846388,-870.0294172,0.00010029,2]
[421106740,1777051846398,-1320.7171891,0.00010029,2]
[421106741,1777051846409,-151.0,0.00010031,2]
[421106742,1777051846419,-1013.03,0.000101,2]
[421106743,1777051846431,-151.0,0.000101,2]
[421106744,1777051846441,-5530.0,0.000102,3]
[421106745,1777051846451,-467.13,0.000102,2]
[421106746,1777051846461,-304.01,0.000102,2]
[421106747,1777051846471,-2000.0,0.000102,2]
[421106748,1777051846482,-151.0,0.00010217,2]
[421106749,1777051846492,-6644.0,0.00010236,2]
[421106750,1777051846504,-255.08,0.00010264,2]
[421106751,1777051846514,-151.0,0.00010265,2]
[421106752,1777051846524,-3260.056706,0.00010278,2]
[421106753,1777051846534,-12057.6265095,0.00010278,2]
[421106754,1777051846543,-5440.7847519,0.00010278,2]
[421106755,1777051846554,-194.1298032,0.00010284,2]
[421106756,1777051846563,-294.6918379,0.00010284,2]
[421106757,1777051846573,-150.0,0.0001033,2]
[421106758,1777051846583,-2005.63657035,0.0001033,2]
[421106759,1777051846593,-150.0,0.00010331,2]
[421106760,1777051846603,-192.678084,0.00010332,2]
[421106761,1777051846614,-158.0,0.00010333,3]
[421106762,1777051846626,-31398.92139517,0.00010368,2]
[421106763,1777051846636,-362.03116044,0.00010368,2]
[421106764,1777051846645,-7101.29569553,0.00010368,2]
[421106765,1777051846655,-2000.0,0.000104,2]
[421106766,1777051846666,-3435.82,0.00010468,2]
[421106767,1777051846675,-1449.88,0.00010468,2]
[421106768,1777051846685,-6887.81,0.00010468,2]
[421106769,1777051846695,-56548.42,0.00010468,2]
[421106770,1777051846706,-1617.36,0.00010468,2]
[421106771,1777051846716,-151.0,0.00010468,2]
[421106772,1777051846726,-151.0,0.00010468,2]
[421106773,1777051846735,-151.0,0.00010472,2]
[421106774,1777051846744,-299.99,0.00010475,2]
[421106775,1777051846754,-1513.93,0.00010475,2]
[421106776,1777051846763,-3114.98,0.00010475,2]
[421106777,1777051846772,-352.1,0.00010475,2]
[421106778,1777051846781,-765.99,0.00010475,2]
[421106779,1777051846791,-150.99,0.00010475,2]
[421106780,1777051846800,-9999.99,0.00010475,2]
[421106781,1777051846810,-2120.65,0.00010475,2]
[421106782,1777051846819,-155.55,0.000105,2]
[421106783,1777051846829,-5530.0,0.000105,5]
[421106784,1777051846838,-1000.0,0.00010521,2]
[421106785,1777051846847,-5000.0,0.00010534,2]
[421106786,1777051846857,-1536.04360649,0.0001054,2]
[421106787,1777051846868,-200.0,0.0001054,2]
[421106788,1777051846878,-168.3888056,0.0001054,2]
[421106789,1777051846888,-829.12830338,0.0001054,2]
[421106790,1777051846897,-194.72792766,0.0001054,2]
[421106791,1777051846907,-312.13772435,0.0001054,2]
[421106792,1777051846917,-3000.0,0.00010542,2]
[421106793,1777051846927,-200.0,0.00010548,2]
[421106794,1777051846936,-151.0,0.00010548,2]
[421106795,1777051846945,-1386.78395259,0.00010548,2]
[421106796,1777051846954,-151.0,0.00010555,2]
[421106797,1777051846964,-247.69,0.00010555,2]
[421106798,1777051846974,-2029.84,0.00010574,2]
[421106799,1777051846983,-9642.93,0.00010574,2]
[421106800,1777051846992,-4810.14,0.00010574,2]
[421106801,1777051847002,-79167.8,0.00010574,2]
[421106802,1777051847011,-2264.31,0.00010574,2]
[421106803,1777051847020,-151.0,0.00010574,2]
[421106805,1777051847030,-151.0,0.00010574,2]
[421106806,1777051847039,-10000.0,0.00010593,2]
[421106807,1777051847048,-3292.0,0.00010599,2]
[421106808,1777051847058,-523.0,0.00010599,2]
[421106809,1777051847068,-2000.0,0.000106,2]
[421106810,1777051847077,-500.0,0.00010603,2]
[421106811,1777051847086,-155.0,0.00010631,2]
[421106812,1777051847096,-1100.0,0.0001067,2]
[421106813,1777051847106,-915.83947302,0.0001069,2]
[421106814,1777051847116,-243164.7785264,0.000107,2]
[421106815,1777051847125,-270.67765805,0.000107,2]
[421106816,1777051847134,-301972.58634694,0.000107,2]
[421106817,1777051847144,-150.0,0.0001075,2]
[421106818,1777051847153,-150.0,0.00010752,2]
[421106819,1777051847162,-150.0,0.00010752,2]
[421106820,1777051847171,-382.65,0.00010764,2]
[421106821,1777051847181,-250.0,0.00010768,2]
[421106822,1777051847191,-2000.0,0.000108,2]
[421106823,1777051847200,-700.0,0.0001087,2]
[421106824,1777051847210,-772.11059952,0.0001087,2]
[421106825,1777051847219,-500.0,0.00010877,2]
[421106826,1777051847229,-1100.0,0.000109,3]
[421106827,1777051847238,-11226.59291822,0.000109,2]
[421106828,1777051847248,-11226.59291822,0.000109,2]
[421106829,1777051847257,-200.0,0.00010959,2]
[421106830,1777051847267,-200.0,0.00010959,2]
[421106831,1777051847276,-200.0,0.00010959,2]
[421106832,1777051847285,-200.0,0.00010959,2]
[421106833,1777051847295,-200.0,0.00010959,2]
[421106834,1777051847304,-200.0,0.00010959,2]
[421106835,1777051847314,-500.0,0.00010959,2]
[421106836,1777051847323,-1888.0,0.00010959,2]
[421106837,1777051847333,-151.0,0.00010959,2]
[421106838,1777051847342,-151.0,0.00010959,2]
[421106839,1777051847351,-151.0,0.00010959,2]
[421106840,1777051847360,-151.0,0.00010959,2]
[421106841,1777051847370,-151.0,0.00010959,2]
[421106842,1777051847379,-151.0,0.00010959,2]
[421106843,1777051847389,-151.0,0.00010959,2]
[421106844,1777051847398,-151.0,0.00010959,2]
[421106845,1777051847408,-151.0,0.00010959,2]
[421106846,1777051847417,-151.0,0.00010959,2]
[421106847,1777051847426,-151.0,0.00010959,2]
[421106848,1777051847435,-151.0,0.00010959,2]
[421106849,1777051847444,-151.0,0.00010959,2]
[421106850,1777051847454,-151.0,0.00010959,2]
[421106851,1777051847463,-151.0,0.00010959,2]
[421106852,1777051847472,-151.0,0.00010959,2]
[421106853,1777051847482,-151.0,0.00010959,2]
[421106854,1777051847491,-151.0,0.00010959,2]
[421106855,1777051847501,-151.0,0.00010959,2]
[421106856,1777051847511,-151.0,0.00010959,2]
[421106857,1777051847520,-151.0,0.00010959,2]
[421106858,1777051847530,-235.0,0.00010959,2]
[421106859,1777051847540,-736.0,0.00010959,2]
[421106860,1777051847549,-203.32,0.00010989,2]
[421106861,1777051847558,-192.42,0.00010989,2]
[421106862,1777051847568,-614.56,0.00010989,2]
[421106863,1777051847577,-639.0,0.00010989,2]
[421106864,1777051847587,-179.02,0.00010989,2]
[421106865,1777051847596,-256.37,0.00010989,2]
[421106866,1777051847606,-151.0,0.00010989,2]
[421106867,1777051847616,-237.42,0.00010989,2]
[421106868,1777051847626,-470.59,0.00010989,2]
[421106869,1777051847635,-403.34,0.00010989,2]
[421106870,1777051847645,-279.67,0.00010989,2]
[421106871,1777051847654,-270.3,0.00010989,2]
[421106872,1777051847663,-155.0,0.00010999,2]
[421106873,1777051847673,-300.0,0.00011,2]
[421106874,1777051847683,-1979.0,0.00011,3]
[421106875,1777051847692,-2000.0,0.00011,2]
[421106876,1777051847702,-11226.59291822,0.00011003,2]
[421106877,1777051847711,-158.0,0.00011019,3]
[421106878,1777051847721,-570.37,0.00011044,2]
[421106879,1777051847730,-715.03467254,0.00011068,2]
[421106880,1777051847740,-1592.87721993,0.00011088,2]
[421106881,1777051847749,-200.0,0.00011088,2]
[421106882,1777051847758,-174.61919141,0.00011088,2]
[421106883,1777051847768,-715.99791653,0.00011088,2]
[421106884,1777051847777,-201.93286099,0.00011088,2]
[421106885,1777051847786,-200.0,0.00011096,2]
[421106886,1777051847795,-151.0,0.00011096,2]
[421106887,1777051847805,-1438.09495884,0.00011096,2]
[421106888,1777051847814,-500.0,0.00011096,2]
[421106889,1777051847823,-600.0,0.00011096,2]
[421106890,1777051847833,-300.0,0.00011098,2]
[421106891,1777051847842,-300.0,0.00011098,2]
[421106892,1777051847851,-300.0,0.00011098,2]
[421106893,1777051847860,-300.0,0.00011098,2]
[421106894,1777051847871,-300.0,0.00011098,2]
[421106895,1777051847880,-12416.54962035,0.00011099,2]
[421106896,1777051847889,-12416.54962031,0.00011099,2]
[421106897,1777051847899,-12416.54962031,0.00011099,2]
[421106898,1777051847908,-12416.54962031,0.00011099,2]
[421106899,1777051847917,-12416.54962031,0.00011099,2]
[421106900,1777051847927,-12416.54962031,0.00011099,2]
[421106901,1777051847936,-12416.54962031,0.00011099,2]
[421106902,1777051847945,-12416.54962031,0.00011099,2]
[421106903,1777051847955,-12416.54962031,0.00011099,2]
[421106904,1777051847964,-12416.54962031,0.00011099,2]
[421106905,1777051847974,-9866.49123025,0.00011099,2]
[421106906,1777051847983,-9866.49123023,0.00011099,2]
[421106907,1777051847993,-9866.49123023,0.00011099,2]
[421106908,1777051848002,-9866.49123023,0.00011099,2]
[421106909,1777051848012,-9866.49123023,0.00011099,2]
[421106910,1777051848022,-9866.49123023,0.00011099,2]
[421106911,1777051848031,-9866.49123023,0.00011099,2]
[421106912,1777051848040,-504.4747226,0.00011151,2]
[421106913,1777051848051,-9866.49123023,0.00011203,2]
[421106914,1777051848060,-397.35,0.0001122,2]
[421106915,1777051848069,-389.75,0.0001122,2]
[421106916,1777051848079,-173.63,0.0001122,2]
[421106917,1777051848088,-250.0,0.00011265,2]
[421106918,1777051848098,-249.805128,0.00011321,2]
[421106919,1777051848107,-233.450371,0.00011321,2]
[421106920,1777051848117,-8500.0,0.00011325,2]
[421106921,1777051848127,-657.30920526,0.00011383,2]
[421106922,1777051848137,-11226.59291822,0.00011451,2]
[421106923,1777051848147,-909.96,0.000115,2]
[421106924,1777051848156,-1216.33,0.000115,2]
[421106925,1777051848166,-3838.68,0.000115,2]
[421106926,1777051848176,-1143.87,0.000115,2]
[421106927,1777051848185,-13350.33,0.000115,2]
[421106928,1777051848195,-9866.49123023,0.00011551,2]
[421106929,1777051848204,-599.60298507,0.00011635,2]
[421106930,1777051848214,-721.12765535,0.00011635,2]
[421106931,1777051848223,-1651.81367706,0.00011636,2]
[421106932,1777051848233,-200.0,0.00011636,2]
[421106933,1777051848242,-181.08010149,0.00011636,2]
[421106934,1777051848252,-209.40437684,0.00011636,2]
[421106935,1777051848261,-200.0,0.00011644,2]
[421106936,1777051848271,-151.0,0.00011644,2]
[421106937,1777051848281,-1491.30447232,0.00011644,2]
[421106938,1777051848290,-3015.34097908,0.00011649,2]
[421106939,1777051848300,-809.0,0.00011659,2]
[421106940,1777051848309,-208.5368175,0.00011668,2]
[421106941,1777051848318,-158.0,0.00011705,3]
[421106942,1777051848329,-2299.44274722,0.00011748,2]
[421106943,1777051848338,-255.1,0.00011849,2]
[421106944,1777051848349,-183.4,0.00011861,2]
[421106945,1777051848358,-550.0,0.00011864,2]
[421106946,1777051848369,-550.0,0.00011864,2]
[421106947,1777051848378,-550.0,0.00011864,2]
[421106948,1777051848388,-550.0,0.00011864,2]
[421106949,1777051848397,-550.0,0.00011864,2]
[421106950,1777051848407,-550.0,0.00011864,2]
[421106951,1777051848416,-550.0,0.00011864,2]
[421106952,1777051848426,-550.0,0.00011864,2]
[421106953,1777051848435,-550.0,0.00011864,2]
[421106954,1777051848444,-519.0,0.00011864,2]
[421106955,1777051848454,-700.0,0.0001187,2]
[421106956,1777051848464,-500.0,0.0001187,2]
[421106957,1777051848474,-1135.7278952,0.0001188,2]
[421106958,1777051848486,-2005.63657035,0.000119,2]
[421106959,1777051848496,-1100.0,0.000119,4]
[421106960,1777051848506,-11226.59291822,0.000119,2]
[421106961,1777051848515,-9866.49123023,0.000119,2]
[421106962,1777051848535,-700.0,0.0001197,2]
[421106963,1777051848546,-500.0,0.0001197,2]
[421106964,1777051848556,-960.0,0.00011975,2]
[421106965,1777051848566,-335.0,0.00011975,2]
[421106966,1777051848576,-1267.0,0.00011975,2]
[421106967,1777051848586,-1685.0,0.00011975,2]
[421106968,1777051848597,-1761.0,0.00011975,2]
[421106969,1777051848607,-536.0,0.00011975,2]
[421106970,1777051848616,-386.0,0.00011975,2]
[421106971,1777051848626,-1848.0,0.00011975,2]
[421106972,1777051848636,-889.0,0.00011975,2]
[421106973,1777051848646,-744.0,0.00011975,2]
[421106974,1777051848656,-171.15,0.00011985,2]
[421106975,1777051848666,-915.83947302,0.0001199,2]
[421106976,1777051848676,-255.1,0.00011994,2]
[421106977,1777051848686,-155.0,0.00011999,2]
[421106978,1777051848695,-264.50458982,0.00011999,2]
[421106979,1777051848705,-300.0,0.00011999,2]
[421106980,1777051848718,-666.0,0.00011999,2]
[421106981,1777051848728,-300.0,0.00011999,2]
[421106982,1777051848737,-666.0,0.00011999,2]
[421106983,1777051848748,-300.0,0.00011999,2]
[421106984,1777051848760,-666.0,0.00011999,2]
[421106985,1777051848770,-300.0,0.00011999,2]
[421106986,1777051848779,-300.0,0.00011999,2]
[421106987,1777051848790,-300.0,0.00011999,2]
[421106988,1777051848800,-150.0,0.00011999,2]
[421106989,1777051848811,-3454134.5636801,0.00012,2]
[421106990,1777051848821,-95745.12885772,0.00012,2]
[421106991,1777051850181,-118189.37814669,0.00012,2]
[421106992,1777051850191,-194305.30101454,0.00012,2]
[421106993,1777051850200,-315071.88626449,0.00012,2]
[421106994,1777051850210,-58826.15147517,0.00012,2]
[421106995,1777051850220,-1000.0,0.00012,2]
[421106996,1777051850229,-1000.0,0.00012,2]
[421106997,1777051850239,-1000.0,0.00012,2]
[421106998,1777051850248,-1000.0,0.00012,2]
[421106999,1777051850258,-1000.0,0.00012,2]
[421107000,1777051850268,-1000.0,0.00012,2]
[421107001,1777051850278,-1000.0,0.00012,2]
[421107002,1777051850288,-1000.0,0.00012,2]
[421107003,1777051850298,-1000.0,0.00012,2]
[421107004,1777051850308,-1000.0,0.00012,2]
[421107005,1777051850318,-1000.0,0.00012,2]
[421107006,1777051850328,-1000.0,0.00012,2]
[421107007,1777051850338,-1000.0,0.00012,2]
[421107008,1777051850347,-1000.0,0.00012,2]
[421107009,1777051850357,-1013.99,0.00012034,7]
[421107010,1777051850367,-1252.0,0.00012054,2]
[421107011,1777051850376,-150.0,0.00012059,2]
[421107012,1777051850387,-150.0,0.00012059,2]
[421107013,1777051850398,-150.0,0.00012059,2]
[421107014,1777051850409,-150.0,0.00012059,2]
[421107015,1777051850420,-167.0,0.00012059,2]
[421107016,1777051850430,-9500.0,0.00012065,2]
[421107017,1777051850440,-666.0,0.00012068,2]
[421107018,1777051850452,-300.0,0.00012068,2]
[421107019,1777051850461,-666.0,0.00012068,2]
[421107020,1777051850471,-300.0,0.00012068,2]
[421107021,1777051850481,-666.0,0.00012068,2]
[421107022,1777051850491,-300.0,0.00012068,2]
[421107023,1777051850501,-227894.06,0.00012069,2]
[421107024,1777051850511,-150.0,0.00012074,2]
[421107025,1777051850520,-150.0,0.00012074,2]
[421107026,1777051850532,-150.0,0.00012074,2]
[421107027,1777051850541,-150.0,0.00012074,2]
[421107028,1777051850551,-150.0,0.00012074,2]
[421107029,1777051850561,-150.0,0.00012074,2]
[421107030,1777051850571,-150.0,0.00012074,2]
[421107031,1777051850580,-266.0,0.00012074,2]
[421107032,1777051850590,-550.0,0.00012088,2]
[421107033,1777051850600,-550.0,0.00012088,2]
[421107034,1777051850610,-550.0,0.00012088,2]
[421107035,1777051850620,-550.0,0.00012088,2]
[421107036,1777051850630,-550.0,0.00012088,2]
[421107037,1777051850640,-550.0,0.00012088,2]
[421107038,1777051850650,-550.0,0.00012088,2]
[421107039,1777051850660,-550.0,0.00012088,2]
[421107040,1777051850669,-624.0,0.00012088,2]
[421107041,1777051850679,-1712.93078312,0.00012184,2]
[421107042,1777051850688,-200.0,0.00012184,2]
[421107043,1777051850698,-187.78006525,0.00012184,2]
[421107044,1777051850707,-217.15233878,0.00012184,2]
[421107045,1777051850717,-200.0,0.00012192,2]
[421107046,1777051850727,-151.0,0.00012192,2]
[421107047,1777051850737,-1073.18913297,0.00012192,2]
[421107048,1777051850747,-1117.0,0.00012282,2]
[421107049,1777051850758,-250.0,0.00012284,2]
[421107050,1777051850767,-250.0,0.00012284,2]
[421107051,1777051850777,-250.0,0.00012284,2]
[421107052,1777051850787,-250.0,0.00012284,2]
[421107053,1777051850796,-250.0,0.00012284,2]
[421107054,1777051850806,-250.0,0.00012284,2]
[421107055,1777051850816,-250.0,0.00012284,2]
[421107056,1777051850825,-250.0,0.00012284,2]
[421107057,1777051850835,-250.0,0.00012284,2]
[421107058,1777051850846,-157.0,0.00012284,2]
[421107059,1777051850855,-150.0,0.00012312,2]
[421107060,1777051850864,-150.0,0.00012312,2]
[421107061,1777051850874,-150.0,0.00012312,2]
[421107062,1777051850884,-150.0,0.00012312,2]
[421107063,1777051850894,-150.0,0.00012312,2]
[421107064,1777051850903,-150.0,0.00012312,2]
[421107065,1777051850913,-283.0,0.00012312,2]
[421107066,1777051850922,-150.0,0.00012343,2]
[421107067,1777051850932,-158.0,0.00012392,3]
[421107068,1777051850942,-500.0,0.00012424,2]
[421107069,1777051850951,-500.0,0.00012424,2]
[421107070,1777051850961,-500.0,0.00012424,2]
[421107071,1777051850970,-500.0,0.00012424,2]
[421107072,1777051850980,-500.0,0.00012424,2]
[421107073,1777051850989,-500.0,0.00012424,2]
[421107074,1777051850999,-500.0,0.00012424,2]
[421107075,1777051851009,-500.0,0.00012424,2]
[421107076,1777051851019,-512.0,0.00012424,2]
[421107077,1777051851028,-1266.0,0.00012438,2]
[421107078,1777051851038,-927.0,0.00012438,2]
[421107079,1777051851047,-1219.0,0.00012438,2]
[421107080,1777051851057,-6032.0,0.00012438,2]
[421107081,1777051851067,-1048.0,0.00012438,2]
[421107082,1777051851076,-150.0,0.00012443,2]
[421107083,1777051851086,-500.0,0.00012466,2]
[421107084,1777051851095,-600.0,0.00012466,2]
[421107085,1777051851105,-700.0,0.0001257,2]
[421107086,1777051851116,-500.0,0.0001257,2]